bitfinex/quotes_SOLUSD_20250607
["timestamp","ask_amount","ask_price","bid_price","bid_amount"]
[1749271802609,28.24987625,149.75,149.74,40.7]
[1749271803308,34.92767257,149.75,149.74,40.7]
[1749271805099,25.32744518,149.75,149.74,40.7]
[1749271806008,27.6524,149.77,149.74,40.7]
[1749271806217,35.60022739,149.77,149.74,40.7]
[1749271806514,18.64964886,149.78,149.74,137.07821263]
[1749271806721,28.24987625,149.78,149.74,140.00022739]
[1749271807015,34.9264161,149.78,149.74,140.00022739]
[1749271807706,18.64964886,149.78,149.74,140.00022739]
[1749271808010,42.27638888,149.79,149.75,9.60022739]
[1749271808207,26.0,149.79,149.75,99.30022739]
[1749271809098,32.67605636,149.79,149.75,99.30022739]
[1749271809410,26.0,149.79,149.75,99.30022739]
[1749271810514,26.0,149.79,149.75,105.97800029]
[1749271812209,15.79702171,149.82,149.78,9.60022739]
[1749271812412,15.79702171,149.82,149.79,40.64]
[1749271812708,6.19679432,149.82,149.8,9.60022739]
[1749271812917,6.19679432,149.82,149.81,9.60022739]
[1749271813210,6.19679432,149.82,149.81,109.76022739]
[1749271814300,6.19679432,149.82,149.81,116.43534921]
[1749271821787,6.19679432,149.82,149.81,109.76022739]
[1749271822497,6.19679432,149.82,149.81,116.43534921]
[1749271828128,6.19679432,149.82,149.81,100.16]
[1749271828294,6.19679432,149.82,149.81,109.76022739]
[1749271837406,6.19679432,149.82,149.81,116.43534921]
[1749271840037,6.19679432,149.82,149.81,109.76022739]
[1749271840535,6.19679432,149.82,149.81,116.43534921]
[1749271847224,16.27315054,149.86,149.82,83.50320568]
[1749271847422,16.27315054,149.86,149.83,40.6]
[1749271849337,12.8204264,149.86,149.83,40.6]
[1749271852341,6.67292315,149.86,149.83,46.74750325]
[1749271852646,6.67292315,149.86,149.83,40.6]
[1749271853143,6.67292315,149.86,149.83,124.10320568]
[1749271854442,6.67292315,149.86,149.83,134.54320568]
[1749271855728,6.67292315,149.86,149.83,140.69070893]
[1749271859253,12.8204264,149.86,149.83,124.10320568]
[1749271861760,12.8204264,149.86,149.83,83.50320568]
[1749271861761,1.6207,149.84,149.83,83.50320568]
[1749271861958,18.64964886,149.83,149.82,83.50320568]
[1749271862138,29.80227839,149.83,149.8,40.6]
[1749271862454,18.64964886,149.81,149.8,83.50320568]
[1749271862956,23.65239316,149.81,149.8,83.50320568]
[1749271863148,18.64964886,149.81,149.8,83.50320568]
[1749271863334,11.67450713,149.81,149.8,83.50320568]
[1749271863534,31.47227393,149.81,149.8,83.50320568]
[1749271863753,36.47165924,149.81,149.8,83.50320568]
[1749271864060,31.47227393,149.81,149.8,83.50320568]
[1749271865631,31.47227393,149.81,149.8,124.10320568]
[1749271869550,31.47227393,149.81,149.8,83.50320568]
[1749271869745,31.47227393,149.81,149.8,124.10320568]
[1749271873448,25.32477068,149.81,149.8,124.10320568]
[1749271873744,31.47227393,149.81,149.8,124.10320568]
[1749271874055,18.64964886,149.81,149.8,40.6]
[1749271874361,31.47227393,149.81,149.8,40.6]
[1749271877572,1.6207,149.84,149.8,46.74750325]
[1749271877771,16.68124992,149.87,149.82,6.14750325]
[1749271877772,12.8199527,149.87,149.82,6.14750325]
[1749271877955,26.0,149.86,149.83,40.6]
[1749271878140,6.14750325,149.87,149.83,130.3]
[1749271878347,7.65340325,149.88,149.83,136.44750325]
[1749271878575,1.5059,149.88,149.84,6.14750325]
[1749271878747,27.5059,149.88,149.85,6.14750325]
[1749271878942,26.0,149.87,149.86,40.62]
[1749271879139,1.5059,149.88,149.86,130.32]
[1749271879442,6.67123733,149.9,149.86,46.76750325]
[1749271879648,6.67123733,149.9,149.86,136.46750325]
[1749271879649,26.0,149.88,149.86,136.46750325]
[1749271879846,26.0,149.88,149.86,130.32]
[1749271880245,24.79715211,149.87,149.8,89.7]
[1749271880445,6.14750325,149.85,149.81,51.08]
[1749271881142,28.25724557,149.85,149.81,10.44]
[1749271881372,9.60759671,149.83,149.81,10.44]
[1749271881568,9.60759671,149.83,149.81,51.1]
[1749271882639,16.28169794,149.84,149.81,51.1]
[1749271883045,6.67410123,149.84,149.81,51.1]
[1749271883259,28.25724557,149.85,149.81,51.1]
[1749271883771,34.93068787,149.85,149.81,51.1]
[1749271884074,9.60759671,149.84,149.81,51.1]
[1749271884976,16.28138832,149.84,149.81,51.1]
[1749271885755,16.28138832,149.84,149.81,140.8]
[1749271887475,9.60759671,149.84,149.81,140.8]
[1749271889476,9.60759671,149.83,149.81,140.8]
[1749271889768,28.25724557,149.82,149.8,40.66]
[1749271889971,9.60759671,149.81,149.8,40.66]
[1749271890864,9.60759671,149.81,149.79,89.7]
[1749271891061,9.60759671,149.81,149.8,40.68]
[1749271891258,28.25724557,149.82,149.8,40.68]
[1749271892083,34.93206294,149.82,149.79,89.7]
[1749271892393,9.60759671,149.8,149.79,89.7]
[1749271892553,28.25724557,149.8,149.79,89.7]
[1749271892899,18.64964886,149.79,149.77,100.16]
[1749271893056,9.60759671,149.78,149.77,100.16]
[1749271893383,9.60759671,149.78,149.77,89.7]
[1749271893591,9.60759671,149.78,149.76,130.42]
[1749271903092,34.93376069,149.78,149.76,130.42]
[1749271903583,28.25724557,149.78,149.76,130.42]
[1749271906124,34.9337299,149.78,149.76,89.7]
[1749271906283,34.9337299,149.78,149.76,130.36]
[1749271909293,9.60759671,149.77,149.76,40.66]
[1749271910007,34.9337299,149.78,149.76,40.66]
[1749271911285,31.48080493,149.78,149.76,40.66]
[1749271915387,31.48080493,149.78,149.76,130.36]
[1749271922115,25.32613319,149.78,149.76,130.36]
[1749271922289,24.8043206,149.78,149.76,130.36]
[1749271922691,31.48091727,149.78,149.76,130.36]
[1749271922899,6.15467174,149.77,149.76,130.36]
[1749271924691,12.83157632,149.77,149.76,130.36]
[1749271924895,6.67690458,149.77,149.76,130.36]
[1749271928631,25.32655344,149.77,149.76,130.36]
[1749271929127,25.32655344,149.77,149.76,89.7]
[1749271932308,18.64964886,149.77,149.76,130.44]
[1749271933218,18.64964886,149.77,149.76,40.74]
[1749271934825,18.64964886,149.78,149.76,40.74]
[1749271935207,30.99016427,149.79,149.76,40.74]
[1749271935414,37.14483601,149.79,149.76,40.74]
[1749271935715,32.15467174,149.79,149.76,40.74]
[1749271936432,24.8043206,149.78,149.76,40.74]
[1749271936740,29.80627042,149.78,149.76,40.74]
[1749271937129,24.8043206,149.78,149.76,40.74]
[1749271937319,18.64964886,149.77,149.76,40.74]
[1749271942357,23.65492353,149.77,149.76,40.74]
[1749271942645,18.64964886,149.77,149.76,40.74]
[1749271945749,23.65527059,149.77,149.76,40.74]
[1749271946041,18.64964886,149.77,149.76,40.74]
[1749271946349,18.64964886,149.77,149.74,6.15467174]
[1749271946560,18.64964886,149.77,149.75,40.68]
[1749271947153,25.32659264,149.77,149.75,40.68]
[1749271947449,18.64964886,149.77,149.75,40.68]
[1749271949147,18.64964886,149.77,149.7,26.0]
[1749271949148,18.64964886,149.75,149.7,89.7]
[1749271949344,32.15467174,149.74,149.7,89.7]
[1749271949659,32.15467174,149.74,149.71,40.66]
[1749271950216,37.15980666,149.74,149.71,40.66]
[1749271950628,32.15467174,149.74,149.71,40.66]
[1749271950833,5.00336838,149.75,149.73,6.15467174]
[1749271951033,32.67717587,149.77,149.74,46.81467174]
[1749271951434,26.0,149.77,149.74,46.81467174]
[1749271951634,23.65211148,149.78,149.75,6.15467174]
[1749271951953,18.64964886,149.78,149.75,95.85467174]
[1749271953441,18.64964886,149.78,149.75,99.3153155]
[1749271954552,31.00209051,149.79,149.76,9.6153155]
[1749271954750,26.0,149.79,149.77,50.2553155]
[1749271955049,26.0,149.79,149.78,9.6153155]
[1749271955247,44.64964886,149.81,149.78,99.3153155]
[1749271955434,49.65041007,149.81,149.79,9.6153155]
[1749271955949,44.64964886,149.81,149.79,9.6153155]
[1749271956525,8.18003139,149.84,149.8,50.2953155]
[1749271956756,8.18003139,149.84,149.8,139.9953155]
[1749271956757,6.50334371,149.84,149.8,139.9953155]
[1749271957061,32.50334371,149.84,149.81,9.6153155]
[1749271957623,27.5061,149.84,149.81,9.6153155]
[1749271959142,26.0,149.84,149.81,9.6153155]
[1749271959342,26.0,149.84,149.82,9.6153155]
[1749271959551,26.0,149.84,149.83,40.66]
[1749271960939,18.64964886,149.87,149.83,139.9753155]
[1749271961266,44.64964886,149.87,149.83,139.9753155]
[1749271961442,44.64964886,149.87,149.83,146.64954158]
[1749271961630,54.26496436,149.87,149.83,139.9753155]
[1749271962748,60.93742206,149.87,149.83,130.36]
[1749271962939,51.32210656,149.87,149.83,130.36]
[1749271963133,60.93742206,149.87,149.83,130.36]
[1749271963344,26.0,149.87,149.83,146.64954513]
[1749271963559,6.5149,149.89,149.85,9.6153155]
[1749271963560,26.0,149.89,149.85,9.6153155]
[1749271963727,28.26496436,149.9,149.86,40.64]
[1749271963933,28.26496436,149.9,149.86,50.2553155]
[1749271964343,26.0,149.89,149.86,50.2553155]
[1749271965368,18.64964886,149.9,149.86,50.2553155]
[1749271965747,25.32080399,149.9,149.86,50.2553155]
[1749271966137,18.64964886,149.9,149.86,50.2553155]
[1749271966549,25.32080535,149.9,149.86,50.2553155]
[1749271969275,34.93612085,149.9,149.86,50.2553155]
[1749271973246,26.0,149.91,149.87,9.6153155]
[1749271973455,35.6153155,149.91,149.87,9.6153155]
[1749271973755,26.0,149.91,149.87,9.6153155]
[1749271974476,26.0,149.91,149.87,99.3153155]
[1749271976165,26.0,149.91,149.89,9.6153155]
[1749271976377,26.0,149.91,149.9,40.6]
[1749271980377,26.0,149.91,149.9,130.3]
[1749271983059,32.67066906,149.91,149.9,130.3]
[1749271985984,51.32031792,149.91,149.9,130.3]
[1749271986159,60.93563342,149.91,149.9,130.3]
[1749271986362,60.93563342,149.91,149.9,40.6]
[1749271990302,77.61230609,149.91,149.87,130.3]
[1749271990459,54.26496436,149.88,149.86,40.6]
[1749271992398,60.93703827,149.88,149.86,40.6]
[1749271993260,60.93703827,149.88,149.84,9.6153155]
[1749271993467,60.93703827,149.88,149.86,40.6]
[1749271997098,44.64964886,149.88,149.86,40.6]
[1749272000296,51.32166032,149.88,149.86,40.6]
[1749272001077,51.32166032,149.88,149.86,130.3]
[1749272001486,26.0,149.88,149.86,130.3]
[1749272001883,26.0,149.88,149.86,136.44613353]
[1749272002403,7.79473353,149.92,149.87,6.14613353]
[1749272002601,7.79473353,149.92,149.88,46.74613353]
[1749272002806,27.6486,149.92,149.89,6.14613353]
[1749272002989,26.0,149.91,149.9,40.6]
[1749272007316,25.31951081,149.93,149.9,40.6]
[1749272007619,4.98872759,149.94,149.9,40.6]
[1749272007779,35.59800509,149.94,149.9,139.89800509]
[1749272008308,9.59800509,149.93,149.9,139.89800509]
[1749272011232,26.0,149.94,149.9,139.89800509]
[1749272011401,35.59800509,149.94,149.9,139.89800509]
[1749272012933,6.54443763,149.96,149.93,9.59800509]
[1749272013138,44.64964886,149.96,149.93,50.17800509]
[1749272013431,11.65558914,149.98,149.94,9.59800509]
[1749272013635,44.64964886,149.97,149.95,50.17800509]
[1749272013813,26.0,149.97,149.95,50.17800509]
[1749272014018,1.6385,150.0,149.96,9.59800509]
[1749272014019,4.98788834,150.0,149.96,9.59800509]
[1749272014208,26.0,150.0,149.98,9.59800509]
[1749272014410,4.98788834,150.03,149.99,56.84501535]
[1749272014731,18.64964886,150.04,150.01,9.59800509]
[1749272014907,18.64964886,150.04,150.02,40.58]
[1749272015110,28.46230578,150.05,150.02,50.17800509]
[1749272015424,28.46230578,150.05,150.02,40.58]
[1749272015425,9.59800509,150.04,150.02,40.58]
[1749272015624,28.24765395,150.03,149.99,40.58]
[1749272015799,54.24765395,150.0,149.99,40.58]
[1749272016004,54.24765395,150.0,149.97,130.28]
[1749272016237,9.59800509,149.99,149.97,130.28]
[1749272016551,6.66755567,149.98,149.97,130.28]
[1749272016924,6.66755567,149.98,149.97,40.58]
[1749272018014,34.91520962,149.98,149.97,40.58]
[1749272018213,18.64964886,149.97,149.95,40.58]
[1749272018548,9.59800509,149.96,149.95,40.58]
[1749272018908,16.26645,149.96,149.95,40.58]
[1749272021351,32.93756229,149.96,149.93,89.7]
[1749272021531,32.93756229,149.96,149.92,58.45800509]
[1749272021532,35.59800509,149.94,149.92,10.42]
[1749272021850,28.24765395,149.93,149.89,89.7]
[1749272022148,9.59800509,149.92,149.9,40.58]
[1749272023150,6.67066906,149.91,149.9,40.58]
[1749272024852,9.59800509,149.92,149.9,40.58]
[1749272025258,34.91755265,149.93,149.9,40.58]
[1749272025628,25.31954756,149.93,149.9,40.58]
[1749272025959,34.91755265,149.93,149.9,40.58]
[1749272026133,28.24765395,149.92,149.88,10.42]
[1749272026460,28.24765395,149.92,149.89,40.58]
[1749272026953,28.24765395,149.92,149.89,130.28]
[1749272027338,6.67066906,149.91,149.89,130.28]
[1749272028160,28.24765395,149.92,149.89,130.28]
[1749272030658,18.64964886,149.92,149.89,130.28]
[1749272030838,28.24765395,149.92,149.89,130.28]
[1749272033660,18.64964886,149.92,149.89,130.28]
[1749272036471,27.6063,149.94,149.9,9.59800509]
[1749272036669,28.24765395,149.93,149.89,139.87800509]
[1749272037663,28.24765395,149.93,149.89,130.28]
[1749272038047,9.59800509,149.92,149.89,130.28]
[1749272038369,18.64964886,149.93,149.89,130.28]
[1749272038668,16.26827233,149.92,149.89,130.28]
[1749272039664,9.59800509,149.92,149.89,130.28]
[1749272039845,16.26825673,149.92,149.89,130.28]
[1749272040456,18.64964886,149.91,149.89,89.7]
[1749272040635,18.64964886,149.91,149.9,40.58]
[1749272041467,18.64964886,149.93,149.9,40.58]
[1749272042153,18.64964886,149.93,149.9,50.17800509]
[1749272042348,18.64964886,149.95,149.92,9.59800509]
[1749272042678,26.0,149.95,149.93,40.58]
[1749272043161,18.64964886,149.96,149.93,40.58]
[1749272043666,44.64964886,149.96,149.93,40.58]
[1749272044652,51.31813867,149.96,149.93,40.58]
[1749272046254,9.59800509,149.95,149.93,40.58]
[1749272046670,26.0,149.94,149.93,40.58]
[1749272046869,18.64964886,149.93,149.91,89.7]
[1749272047055,28.24765395,149.93,149.91,130.28]
[1749272047556,35.59800509,149.94,149.91,130.28]
[1749272047969,42.26742336,149.94,149.91,130.28]
[1749272049980,35.59800509,149.94,149.91,130.28]
[1749272051602,9.59800509,149.93,149.91,130.28]
[1749272052662,42.26744122,149.94,149.91,130.28]
[1749272052864,35.59800509,149.94,149.91,130.28]
[1749272057472,26.0,149.94,149.91,130.28]
[1749272057669,26.0,149.94,149.91,139.87800509]
[1749272057859,32.6693648,149.94,149.91,130.28]
[1749272058259,26.0,149.94,149.91,139.87800509]
[1749272058707,26.0,149.94,149.91,146.54852315]
[1749272059191,18.64964886,149.96,149.93,9.59800509]
[1749272059369,18.64964886,149.96,149.94,40.58]
[1749272059570,28.24765395,149.96,149.94,40.58]
[1749272060185,34.9161424,149.96,149.94,40.58]
[1749272062379,28.24765395,149.96,149.94,40.58]
[1749272062779,34.91610491,149.96,149.94,40.58]
[1749272063182,34.91610491,149.96,149.94,130.28]
[1749272064193,28.24765395,149.96,149.94,130.28]
[1749272064593,18.64964886,149.96,149.94,130.28]
[1749272064782,28.24765395,149.96,149.94,130.28]
[1749272064977,34.91611803,149.96,149.94,130.28]
[1749272065183,28.24765395,149.95,149.94,130.28]
[1749272066180,18.64964886,149.95,149.94,130.28]
[1749272069091,18.64964886,149.95,149.94,40.58]
[1749272069286,37.65940904,149.97,149.94,40.58]
[1749272069487,28.24765395,149.96,149.94,40.58]
[1749272070098,23.64121675,149.96,149.94,40.58]
[1749272070400,9.59800509,149.95,149.94,40.58]
[1749272071208,34.91644276,149.96,149.94,40.58]
[1749272071400,39.90798721,149.96,149.94,40.58]
[1749272072410,34.91644276,149.96,149.94,40.58]
[1749272072900,39.90859633,149.96,149.94,40.58]
[1749272073487,34.91644276,149.96,149.94,40.58]
[1749272074125,39.90874437,149.96,149.94,40.58]
[1749272075309,28.24765395,149.95,149.94,40.58]
[1749272077212,24.79019849,149.95,149.94,40.58]
[1749272078514,31.45908811,149.95,149.94,40.58]
[1749272080811,24.79019849,149.95,149.94,40.58]
[1749272085802,31.45908811,149.95,149.94,40.58]
[1749272089104,31.45908811,149.95,149.91,100.12]
[1749272089304,24.79019849,149.92,149.91,10.42]
[1749272089504,24.79019849,149.92,149.87,6.14054963]
[1749272089505,18.64964886,149.91,149.87,100.12]
[1749272089734,6.14054963,149.9,149.89,40.58]
[1749272090807,6.14054963,149.91,149.89,40.58]
[1749272091223,12.81124319,149.91,149.89,40.58]
[1749272095940,6.14054963,149.91,149.89,40.58]
[1749272096908,6.67038125,149.92,149.89,40.58]
[1749272097211,6.14054963,149.91,149.89,40.58]
[1749272099609,12.81093088,149.92,149.89,40.58]
[1749272099914,18.64964886,149.91,149.89,40.58]
[1749272100115,18.64964886,149.91,149.88,95.84054963]
[1749272100323,18.64964886,149.91,149.89,40.58]
[1749272101015,30.99251401,149.94,149.89,46.72054963]
[1749272101215,6.14054963,149.95,149.91,6.14054963]
[1749272101416,32.14054963,149.95,149.92,40.58]
[1749272101736,26.0,149.95,149.92,130.28]
[1749272101934,32.14054963,149.95,149.92,130.28]
[1749272103452,38.80950504,149.95,149.92,130.28]
[1749272105327,24.79019849,149.94,149.92,130.28]
[1749272105543,6.14054963,149.93,149.92,130.28]
[1749272105839,18.64964886,149.93,149.92,130.28]
[1749272107833,35.59641142,149.95,149.92,130.28]
[1749272108222,26.0,149.95,149.92,139.87641142]
[1749272108422,28.24606028,149.96,149.92,139.87641142]
[1749272108616,26.0,149.97,149.94,9.59641142]
[1749272108828,26.0,149.97,149.95,40.58]
[1749272109446,20.24374886,149.98,149.95,130.28]
[1749272111623,18.64964886,149.97,149.95,130.28]
[1749272111831,28.24606028,149.97,149.95,130.28]
[1749272112637,18.64964886,149.97,149.95,130.28]
[1749272113038,28.24606028,149.98,149.95,130.28]
[1749272113217,4.98823497,150.01,149.96,9.59641142]
[1749272113420,18.64964886,150.01,149.97,50.98]
[1749272113625,18.64964886,150.03,149.97,50.98]
[1749272113929,44.64964886,150.03,149.99,9.59641142]
[1749272114137,9.59641142,150.02,150.0,40.68]
[1749272114746,51.3149845,150.03,150.0,40.68]
[1749272114921,34.91139592,150.03,150.0,40.68]
[1749272115243,60.91139592,150.03,150.0,40.68]
[1749272115740,9.59641142,150.02,150.0,40.68]
[1749272117230,6.95054075,150.05,150.01,9.59641142]
[1749272117231,18.64964886,150.04,150.01,9.59641142]
[1749272117830,18.64964886,150.04,150.0,50.27641142]
[1749272118550,28.24606028,150.04,150.0,50.27641142]
[1749272118746,34.91101577,150.04,150.0,40.68]
[1749272118922,25.31460435,150.04,150.0,50.27641142]
[1749272119342,34.91101577,150.04,150.0,139.97641142]
[1749272119643,18.64964886,150.04,150.01,9.59641142]
[1749272120142,28.24606028,150.04,150.0,139.97641142]
[1749272122043,28.24606028,150.04,150.0,146.64305393]
[1749272122232,18.64964886,150.04,150.01,9.59641142]
[1749272123142,28.24606028,150.04,150.0,139.97641142]
[1749272125646,27.96230578,150.05,150.01,9.59641142]
[1749272125849,1.96230578,150.05,150.02,50.31641142]
[1749272126148,11.5587172,150.05,150.02,130.42]
[1749272126329,1.96230578,150.05,150.02,130.42]
[1749272126724,11.5587172,150.05,150.02,130.42]
[1749272130726,18.22325703,150.05,150.02,130.42]
[1749272131225,11.5587172,150.05,150.02,130.42]
[1749272133764,18.64964886,150.04,150.02,130.42]
[1749272134055,28.24606028,150.04,150.02,130.42]
[1749272135158,34.91099447,150.04,150.02,130.42]
[1749272137257,34.91099447,150.04,150.02,40.72]
[1749272138952,25.31458305,150.04,150.02,40.72]
[1749272139939,34.91099447,150.04,150.02,40.72]
[1749272141142,25.31458305,150.04,150.02,40.72]
[1749272141757,25.31458305,150.04,150.03,40.64]
[1749272146651,32.32374983,150.04,150.03,40.64]
[1749272149566,18.64964886,150.04,150.03,40.64]
[1749272150454,1.96230578,150.05,150.03,40.64]
[1749272150656,18.64964886,150.04,150.03,40.64]
[1749272150850,25.65881564,150.04,150.03,40.64]
[1749272152073,25.31453822,150.04,150.03,40.64]
[1749272153863,32.323705,150.04,150.03,40.64]
[1749272155560,18.64964886,150.04,150.03,40.64]
[1749272158383,23.64475814,150.04,150.03,40.64]
[1749272160371,30.3096475,150.04,150.03,40.64]
[1749272163301,4.99510928,150.04,150.03,40.64]
[1749272163587,1.96230578,150.05,150.03,137.34916678]
[1749272163884,1.96230578,150.05,150.03,130.34]
[1749272166185,1.96230578,150.05,150.03,137.34916678]
[1749272168383,1.96230578,150.05,150.03,144.01443332]
[1749272169769,1.96230578,150.05,150.03,137.34916678]
[1749272170873,1.96230578,150.05,150.04,7.00916678]
[1749272171873,1.96230578,150.05,150.03,130.34]
[1749272172191,4.99317252,150.04,150.03,130.34]
[1749272172368,30.65198816,150.04,150.03,89.7]
[1749272172563,25.65881564,150.04,150.03,40.56]
[1749272173080,30.65200638,150.04,150.03,40.56]
[1749272173688,23.6428396,150.04,150.03,40.56]
[1749272174694,8.97147256,150.05,150.03,40.56]
[1749272174991,4.99332589,150.04,150.03,40.56]
[1749272175503,8.97147256,150.05,150.03,40.56]
[1749272175869,4.99326852,150.04,150.03,40.56]
[1749272179602,15.63592315,150.05,150.03,40.56]
[1749272179894,8.97147256,150.05,150.03,40.56]
[1749272182779,1.96230578,150.05,150.03,40.56]
[1749272183475,6.95543431,150.05,150.03,40.56]
[1749272183978,1.96230578,150.05,150.03,40.56]
[1749272184198,6.95535059,150.05,150.03,40.56]
[1749272184990,1.96230578,150.05,150.03,40.56]
[1749272185881,6.95550442,150.05,150.03,137.26916678]
[1749272186202,1.96230578,150.05,150.04,7.00916678]
[1749272187781,1.96230578,150.05,150.04,96.70916678]
[1749272187985,1.96230578,150.05,150.04,103.37405614]
[1749272193305,0.9475595,150.1,150.05,87.73769422]
[1749272193623,0.9475595,150.1,150.08,7.00916678]
[1749272193794,0.9475595,150.1,150.09,40.54]
[1749272194118,0.9475595,150.1,150.09,128.27769422]
[1749272205118,0.9475595,150.1,150.09,40.54]
[1749272211035,0.9475595,150.1,150.09,128.27769422]
[1749272220808,7.60978468,150.1,150.09,128.27769422]
[1749272221115,34.89010032,150.1,150.09,128.27769422]
[1749272221930,34.89010032,150.1,150.07,10.42]
[1749272221931,18.64964886,150.09,150.07,10.42]
[1749272222130,25.65881564,150.09,150.08,40.54]
[1749272223434,34.89010032,150.1,150.08,40.54]
[1749272223821,7.00916678,150.09,150.08,40.54]
[1749272225343,26.0,150.09,150.08,40.54]
[1749272227428,32.66266906,150.09,150.08,40.54]
[1749272228321,58.3214847,150.09,150.08,40.54]
[1749272233552,51.31231792,150.09,150.08,40.54]
[1749272234247,44.64964886,150.09,150.08,40.54]
[1749272238051,26.0,150.09,150.08,40.54]
[1749272238366,0.9475595,150.1,150.08,47.54916678]
[1749272243546,0.9475595,150.1,150.08,135.286861]
[1749272265754,0.9475595,150.1,150.08,145.686861]
[1749272270080,26.0,150.09,150.08,87.73769422]
[1749272270252,26.0,150.09,150.08,128.25769422]
[1749272273264,26.0,150.09,150.08,40.52]
[1749272275875,32.66266906,150.09,150.08,40.52]
[1749272276078,58.3214847,150.09,150.08,40.52]
[1749272276286,18.64964886,150.08,150.05,10.4]
[1749272276482,25.65881564,150.08,150.06,40.52]
[1749272277195,32.32221132,150.08,150.06,40.52]
[1749272278467,25.31304454,150.08,150.06,40.52]
[1749272281190,25.31304454,150.08,150.05,17.40916678]
[1749272281394,25.31304454,150.08,150.06,40.52]
[1749272285563,32.32221132,150.08,150.06,40.52]
[1749272285763,32.32221132,150.08,150.05,98.13769422]
[1749272285764,7.00916678,150.07,150.05,98.13769422]
[1749272285980,33.00916678,150.06,150.05,87.73769422]
[1749272286162,18.64964886,150.01,149.97,10.4]
[1749272286368,7.00916678,150.0,149.98,40.52]
[1749272286595,32.32577454,150.0,149.99,40.52]
[1749272288065,18.64964886,149.99,149.97,10.4]
[1749272288266,7.00916678,149.98,149.97,10.4]
[1749272288470,7.00916678,149.98,149.93,24.07882855]
[1749272288670,7.00916678,149.98,149.94,40.52]
[1749272289592,7.00916678,149.98,149.93,111.81652277]
[1749272289800,7.00916678,149.98,149.94,47.52916678]
[1749272289984,25.65881564,149.99,149.94,47.52916678]
[1749272290291,26.0,149.96,149.94,87.73769422]
[1749272290488,26.0,149.96,149.95,40.52]
[1749272291399,7.00916678,149.98,149.95,40.54]
[1749272291598,6.3596,150.0,149.96,7.00916678]
[1749272291894,8.58246678,150.01,149.97,7.00916678]
[1749272292104,8.58246678,150.01,149.98,40.54]
[1749272292105,1.5733,150.01,149.98,40.54]
[1749272292602,27.5733,150.01,149.98,47.20714502]
[1749272294300,34.58246678,150.01,149.98,47.20714502]
[1749272296888,34.58246678,150.01,149.98,134.94483924]
[1749272298810,8.58246678,150.01,149.98,134.94483924]
[1749272298983,1.5733,150.01,149.98,141.95400602]
[1749272299485,8.58246678,150.01,149.98,134.94483924]
[1749272300203,1.5733,150.01,149.98,134.94483924]
[1749272304220,1.5733,150.01,149.98,141.95400602]
[1749272304390,1.5733,150.01,149.98,134.94483924]
[1749272304590,25.65881564,150.02,149.98,141.95400602]
[1749272305090,18.64964886,150.02,149.98,141.95400602]
[1749272305823,6.6337,150.04,150.0,7.00916678]
[1749272306030,8.56426678,150.05,150.02,6.66577789]
[1749272306190,1.5551,150.05,150.02,13.67494467]
[1749272307594,7.00916678,150.04,150.02,87.73769422]
[1749272308828,18.64964886,150.05,150.02,87.73769422]
[1749272308996,25.65881564,150.05,150.02,87.73769422]
[1749272310131,32.32346772,150.05,150.02,87.73769422]
[1749272311355,36.26645541,150.05,150.02,87.73769422]
[1749272311652,18.64964886,150.05,150.03,40.54]
[1749272317539,29.60180333,150.04,150.03,40.54]
[1749272318817,36.26669269,150.04,150.03,40.54]
[1749272322648,29.60180333,150.04,150.03,40.54]
[1749272324142,18.64964886,150.04,150.03,40.54]
[1749272328545,26.0,150.06,150.03,40.54]
[1749272328847,18.64964886,150.01,150.0,40.52]
[1749272329048,29.60180333,150.01,150.0,40.52]
[1749272330059,36.26806147,150.01,149.99,40.52]
[1749272330433,29.60180333,150.01,149.99,40.52]
[1749272331248,44.64964886,149.99,149.98,10.4]
[1749272331434,26.0,149.99,149.98,50.92]
[1749272333964,18.64964886,150.01,149.98,50.92]
[1749272334148,18.64964886,150.01,149.98,61.87215447]